{"text_format":"3","workbook":"xlsx","n_sheets":2,"sheets":["Fatura de Cobrança","Informações da Empresa"],"not_rendered":{"images":1,"defined_names":27},"read":"whole","date_system":"1900"}

{"sheet":"Fatura de Cobrança","index":0,"n_rows":35,"n_cols":7,"rows_kept":35,"merged":[[1,3,2,4],[3,3,3,4],[4,3,4,4],[5,3,5,4],[23,1,23,3],[24,1,24,3],[25,1,25,3],[26,1,26,3]]}
[null,"FATURA","0005"]
[null,{"$f":"TODAY()","v":"2022-04-07"},null,{"$f":"TotalDaFatura","v":79.65},null," ","Informações da Empresa"]
[null,"PRAZO DO PAGAMENTO:",{"$f":"TODAY()+15","v":"2022-04-22"},null,null," "]
[null,"CONSTÂNCIA BOTAS",null,"ADVENTURE WORKS"]
[null,"Fabrikam, Inc.",null,"Rua dos Lírios N.º 234"]
[null,"Rua das Flores N.º 1234",null,"Lisboa"]
[null,"1234-123 Lisboa"]
[null,"QUANTIDADE","DETALHES","PREÇO UNITÁRIO","TOTAL"]
[null,2,"Ferramentas",14.95,{"$f":"IFERROR(DetalhesDaFatura[[#This Row],[PREÇO UNITÁRIO]]*DetalhesDaFatura[[#This Row],[QUANTIDADE]],\"\")","v":{"v":29.9,"d":"29.90"}}]
[null,5,"Anilhas",9.95,{"$f":"IFERROR(DetalhesDaFatura[[#This Row],[PREÇO UNITÁRIO]]*DetalhesDaFatura[[#This Row],[QUANTIDADE]],\"\")","v":49.75}]
[{"$nulls":4},{"$f":"IFERROR(DetalhesDaFatura[[#This Row],[PREÇO UNITÁRIO]]*DetalhesDaFatura[[#This Row],[QUANTIDADE]],\"\")","v":0}]
[{"$nulls":4},{"$f":"IFERROR(DetalhesDaFatura[[#This Row],[PREÇO UNITÁRIO]]*DetalhesDaFatura[[#This Row],[QUANTIDADE]],\"\")","v":0}]
[{"$nulls":4},{"$f":"IFERROR(DetalhesDaFatura[[#This Row],[PREÇO UNITÁRIO]]*DetalhesDaFatura[[#This Row],[QUANTIDADE]],\"\")","v":0}]
[{"$nulls":4},{"$f":"IFERROR(DetalhesDaFatura[[#This Row],[PREÇO UNITÁRIO]]*DetalhesDaFatura[[#This Row],[QUANTIDADE]],\"\")","v":0}]
[{"$nulls":4},{"$f":"IFERROR(DetalhesDaFatura[[#This Row],[PREÇO UNITÁRIO]]*DetalhesDaFatura[[#This Row],[QUANTIDADE]],\"\")","v":0}]
[{"$nulls":4},{"$f":"IFERROR(DetalhesDaFatura[[#This Row],[PREÇO UNITÁRIO]]*DetalhesDaFatura[[#This Row],[QUANTIDADE]],\"\")","v":0}]
[{"$nulls":4},{"$f":"IFERROR(DetalhesDaFatura[[#This Row],[PREÇO UNITÁRIO]]*DetalhesDaFatura[[#This Row],[QUANTIDADE]],\"\")","v":0}]
[{"$nulls":4},{"$f":"IFERROR(DetalhesDaFatura[[#This Row],[PREÇO UNITÁRIO]]*DetalhesDaFatura[[#This Row],[QUANTIDADE]],\"\")","v":0}]
[{"$nulls":4},{"$f":"IFERROR(DetalhesDaFatura[[#This Row],[PREÇO UNITÁRIO]]*DetalhesDaFatura[[#This Row],[QUANTIDADE]],\"\")","v":0}]
[{"$nulls":4},{"$f":"IFERROR(DetalhesDaFatura[[#This Row],[PREÇO UNITÁRIO]]*DetalhesDaFatura[[#This Row],[QUANTIDADE]],\"\")","v":0}]
[{"$nulls":4},{"$f":"IFERROR(DetalhesDaFatura[[#This Row],[PREÇO UNITÁRIO]]*DetalhesDaFatura[[#This Row],[QUANTIDADE]],\"\")","v":0}]
[{"$nulls":4},{"$f":"IFERROR(DetalhesDaFatura[[#This Row],[PREÇO UNITÁRIO]]*DetalhesDaFatura[[#This Row],[QUANTIDADE]],\"\")","v":0}]
[{"$nulls":4},{"$f":"IFERROR(DetalhesDaFatura[[#This Row],[PREÇO UNITÁRIO]]*DetalhesDaFatura[[#This Row],[QUANTIDADE]],\"\")","v":0}]
[null,"Desconto"]
[null,"Total Líquido",null,null,{"$f":"SUM(DetalhesDaFatura[TOTAL])-E24","v":{"v":79.65,"d":"79.65 €"}}]
[null,"Imposto"]
[null,{"$f":"REPT(InformaçõesDaEmpresa_AbreviaturaDaMoeda,LEN(InformaçõesDaEmpresa_AbreviaturaDaMoeda)>0) & \" TOTAL\"","v":"EUR TOTAL"},null,null,{"$f":"IFERROR(E25+E26, \"\")","v":{"v":79.65,"d":"79.65 €"}}]
[null,"DETALHES DO PAGAMENTO",null,null,"OUTRAS INFORMAÇÕES"]
[null,"Nome do Beneficiário:",{"$f":" InformaçõesDaEmpresa_NomeDoBeneficiárioDoBanco","v":"Adventure Works"},null,{"$f":"IFERROR(InformaçõesDaEmpresa_OSeuNome,\"\")","v":"Gustavo Dias"}]
[null,"Nome do Banco:",{"$f":"InformaçõesDaEmpresa_NomeDoBanco","v":"Woodgrove Bank"},null,{"$f":"IFERROR(\"Telefone: \" & InformaçõesDaEmpresa_OSeuTelefone,\"\")","v":"Telefone: 4255550150"}]
[null,"Endereço do Banco:",{"$f":"InformaçõesDaEmpresa_EndereçoDoBanco","v":"Rua dos Lírios N.º 234, Lisboa"},null,{"$f":"IFERROR(\"Fax: \" & InformaçõesDaEmpresa_OSeuFax,\"\")","v":"Fax: 4255550151"}]
[null,"Número da Conta:",{"$f":"InformaçõesDaEmpresa_ContaBancária","v":1234567},null,{"$f":"IFERROR(InformaçõesDaEmpresa_OSeuURL,\"\")","v":"Adventure-Works.com"}]
[null,"Número de Identificação Bancária (Código SWIFT)",{"$f":"InformaçõesDaEmpresa_IdentificaçãoBancária","v":9876543210},null,{"$f":"IFERROR(InformaçõesDaEmpresa_OSeuEmail,\"\")","v":"Contabilidade@Adventure-Works.com"}]
[null,"Referência do Pagamento:",{"$f":"ApresentaçãoDoNúmeroDaFatura","v":"0005"},null,{"$f":"IFERROR(IF(LEN(Client_PO),\"Contrato/Nota de Encomenda: \" & Client_PO,\"\"),\"\")","v":""}]
[null,{"$f":"UPPER(\"O pagamento deverá ser efetuado por transferência bancária ou por cheque à ordem de \" & InformaçõesDaEmpresa_BeneficiárioDoCheque & \".\")","v":"O PAGAMENTO DEVERÁ SER EFETUADO POR TRANSFERÊNCIA BANCÁRIA OU POR CHEQUE À ORDEM DE ADVENTURE WORKS."}]

{"sheet":"Informações da Empresa","index":1,"n_rows":20,"n_cols":5,"rows_kept":20}
[null,"INFORMAÇÕES DA EMPRESA"]
[null,"DETALHES DA EMPRESA EMISSORA DA FATURA","VALOR",null,"Fatura de Cobrança"]
[null,"Nome","Gustavo Dias"]
[null,"Nome da Empresa","ADVENTURE WORKS"]
[null,"Endereço 1","Rua dos Lírios N.º 234"]
[null,"Endereço 2","Lisboa"]
[null,"Endereço 3"]
[null,"Endereço 4"]
[null,"Endereço 5"]
[null,"Telefone","4255550150"]
[null,"Fax","4255550151"]
[null,"Site","Adventure-Works.com"]
[null,"E-mail","Contabilidade@Adventure-Works.com"]
[null,"Abreviatura da Moeda","EUR"]
[null,"Nome do Beneficiário da Transferência Bancária","Adventure Works"]
[null,"Nome do Banco","Woodgrove Bank"]
[null,"Endereço do Banco","Rua dos Lírios N.º 234, Lisboa"]
[null,"Número da Conta",1234567]
[null,"Número de Identificação Bancária (Código SWIFT)",9876543210]
[null,"Passar os Cheques à Ordem de","Adventure Works"]